[Event "9th Porticcio Open 2024"]
[Site "Porticcio"]
[Date "2024.07.01"]
[Round "2.4"]
[White "Clarke, Brandon G I"]
[Black "Priansh Das"]
[Result "1/2-1/2"]
[ECO "A03"]
[WhiteElo "2498"]
[BlackElo "2263"]
[Annotator "TA"]
[PlyCount "70"]
[EventDate "2024.07.01"]
[EventType "swiss"]
[EventCountry "FRA"]
[SourceTitle "playchess.com"]
[Source "ChessBase"]
[SourceQuality "1"]
[TimeControl "5400+30"]

{[%evp 14,70,-14,-18,20,12,12,15,16,12,0,4,10,9,21,0,0,0,0,0,0,0,0,0,0,-5,-4,-4,-7,-7,0,0,0,-2,-5,-12,-13,-11,-16,-18,0,0,0,0,0,0,0,-12,0,0,0,0,0,0,0,0,0,0,0]} 1. c3 {[%emt 0:00:03]} Nf6 {[%emt 0:00:34]} 2. d3 {[%emt 0:00:11]} g6 {[%emt 0:00:06]} 3. g3 {[%emt 0:01:40]} Bg7 {[%emt 0:01:05]} 4. Bg2 {[%emt 0:00:03]} O-O {[%emt 0:00:18]} 5. f4 {[%emt 0:01:20]} d5 {[%emt 0:00:29]} 6. Nf3 {[%emt 0:00:15]} c5 {[%emt 0:03:25]} 7. O-O {[%emt 0:00:12]} Nc6 {[%emt 0:00:07]} 8. Na3 {[%emt 0:04:13] The position is equal.} d4 {[%emt 0:04:05]} 9. e4 {[%emt 0:05:17]} dxe3 {[%emt 0:07:03]} 10. Bxe3 {[%emt 0:00:07][%cal Bc1e3,Be3c5,Bc5d4][%mdl 32]} Bf5 {[%emt 0:08:14]} 11. Bxc5 {[%emt 0:04:18]} Bxd3 {[%emt 0:01:34]} 12. Re1 {[%emt 0:01:02]} Be4 {[%emt 0:08:38]} 13. Qxd8 {[%emt 0:05:34]} Rfxd8 {[%emt 0:04:40]} 14. Nd4 {[%emt 0:04:07]} Bxg2 {[%emt 0:01:45]} 15. Kxg2 {[%emt 0:00:03]} Nxd4 {[%emt 0:04:35]} 16. Bxd4 {[%emt 0:00:46]} Ng4 {[%emt 0:00:28]} 17. Nc2 {[%emt 0:20:13]} e5 {[%emt 0:01:04]} 18. fxe5 {[%emt 0:00:39]} (18. Bxe5 $2 {too greedy.} Rd2+ 19. Kg1 Rxc2 $19) 18... Nxe5 {[%emt 0:00:18]} 19. Re2 {[%emt 0:01:06]} (19. Rxe5 $2 {loses.} Bxe5 20. Be3 Bg7 $19) 19... Nc6 {[%emt 0:02:12]} 20. Bxg7 {[%emt 0:11:40]} Kxg7 {[%emt 0:00:40]} 21. Rf1 {[%emt 0:01:50]} Rd7 {[%emt 0:00:57]} 22. g4 {[%emt 0:02:17]} h6 {[%emt 0:00:36]} 23. Rf4 {[%emt 0:01:10]} Rad8 {[%emt 0:00:18]} 24. h3 {[%emt 0:34:24]} Rd2 {[%emt 0:00:45]} 25. Rff2 {[%emt 0:00:00]} Rxe2 {[%emt 0:00:43]} 26. Rxe2 $11 {[%emt 0:00:00][%mdl 4096] Endgame. KRN-KRN} f5 {[%emt 0:00:38]} 27. gxf5 {[%emt 0:00:00]} gxf5 {[%emt 0:00:15]} 28. Rf2 {[%emt 0:00:00]} Kg6 {[%emt 0:03:47]} 29. Ne3 {[%emt 0:00:00]} Ne7 {[%emt 0:00:27]} 30. Kf3 {[%emt 0:00:00]} Kf6 {[%emt 0:01:33]} 31. Ke2 {[%emt 0:00:00]} Ke5 {[%emt 0:01:56]} 32. Rg2 {[%emt 0:00:00]} Kf6 {[%emt 0:01:20]} 33. Rf2 {[%emt 0:00:00]} Ke5 {[%emt 0:00:44]} 34. Rg2 {[%emt 0:00:00]} Kf6 {[%emt 0:01:37] Against Rg7} 35. Rf2 {[%emt 0:00:00]} Ke5 {[%emt 0:00:09] A rather calm draw.   Weighted Error Value: White=0.02 (flawless) /Black=0.03 (flawless) .  OK:         	White=13    	Black=13} 1/2-1/2

[Event "9th Porticcio Open 2024"]
[Site "Porticcio"]
[Date "2024.07.01"]
[Round "2.5"]
[White "Klek, Hanna Marie"]
[Black "Bailet, Pierre"]
[Result "0-1"]
[ECO "C50"]
[WhiteElo "2300"]
[BlackElo "2491"]
[Annotator "TA"]
[PlyCount "62"]
[EventDate "2024.07.01"]
[EventType "swiss"]
[EventCountry "FRA"]
[SourceTitle "playchess.com"]
[Source "ChessBase"]
[SourceQuality "1"]
[TimeControl "5400+30"]

{[%evp 9,62,13,10,14,16,19,8,13,7,12,4,13,12,-8,0,0,0,0,-2,0,0,0,0,-18,-11,-24,-15,-20,-18,-14,-17,-18,-8,0,-2,0,0,-11,-39,-35,-25,-35,-10,-16,-16,-343,-342,-307,-279,-393,-378,-443,-485,-469,-462]} 1. e4 {[%emt 0:00:04]} e5 {[%emt 0:01:49]} 2. Nf3 {[%emt 0:00:07]} Nc6 {[%emt 0:00:17]} 3. Bc4 {[%emt 0:00:09]} Nf6 {[%emt 0:00:52]} 4. d3 {[%emt 0:00:07]} Bc5 {[%emt 0:00:35]} 5. a4 {[%emt 0:00:14]} O-O {[%emt 0:01:07]} 6. O-O {[%emt 0:00:40]} h6 {[%emt 0:04:30]} 7. a5 {[%emt 0:04:16]} a6 {[%emt 0:01:21]} 8. c3 {[%emt 0:00:27] The position is equal.} d6 {[%emt 0:04:47]} 9. Be3 {[%emt 0:01:10]} Bxe3 {[%emt 0:02:35]} 10. fxe3 {[%emt 0:00:06]} Be6 {[%emt 0:00:20]} 11. Nbd2 {[%emt 0:03:28]} Bxc4 {[%emt 0:11:12]} 12. Nxc4 {[%emt 0:00:07]} d5 {[%emt 0:02:05]} 13. Ncxe5 {[%emt 0:07:07]} dxe4 {[%emt 0:02:18]} 14. Nxc6 {[%emt 0:00:32]} bxc6 {[%emt 0:00:28]} 15. dxe4 {[%emt 0:02:27]} Nxe4 {[%emt 0:03:09]} 16. Qd4 {[%emt 0:12:59]} Qd5 {[%emt 0:14:09]} 17. Rad1 {[%emt 0:05:19]} Rab8 {[%emt 0:04:54]} 18. Qa4 {[%emt 0:06:32]} Qe6 {[%emt 0:07:45]} 19. Nd4 {[%emt 0:01:58][%csl LRc6,LRe6]} Qe8 {[%emt 0:00:33]} 20. Qxc6 {[%emt 0:12:47]} Qxc6 {[%emt 0:07:11]} 21. Nxc6 {[%emt 0:00:04]} Rxb2 {[%emt 0:00:07][%cal Of8e8]} 22. Rd7 {[%emt 0:11:35]} Nxc3 {[%emt 0:06:30]} 23. Ne7+ {[%emt 0:02:05]} Kh7 {[%emt 0:00:21]} 24. Rxc7 {[%emt 0:00:11]} Ne4 {[%emt 0:03:06]} 25. Nf5 {[%emt 0:14:20]} Rb5 {[%emt 0:04:45]} 26. Re7 {[%emt 0:03:04]} Nd2 {[%emt 0:03:05]} 27. Rf4 {[%emt 0:00:26][%mdl 8192] [#] This move loses the game for White.} (27. Nd6 $11 {and White is okay.} Rxa5 28. Rfxf7 Rxf7 29. Rxf7) 27... g5 $1 $19 {[%emt 0:03:15]} (27... Rxa5 28. h4 $15) 28. Rd4 {[%emt 0:01:49] [#]} Nb3 $1 {[%emt 0:02:38]} (28... Rxf5 29. Rxd2 Rxa5 30. h3 $15) (28... Rxa5 29. Nxh6 Ra1+ 30. Kf2 $11) 29. Nd6 {[%emt 0:02:39]} (29. Rd3 $142 Nc1 (29... Rxf5 30. Rxb3 Rxa5 31. h3 $11) (29... Rxa5 30. Nxh6 Kxh6 31. Rxb3 $11) 30. Rd1 Ne2+ (30... Rxf5 31. Rxc1 Rxa5 32. h3 $15) (30... Rxa5 31. Nd4 $16) 31. Kf1) 29... Nxd4 {[%emt 0:00:47]} ({Weaker is} 29... Rxa5 30. Rc4 $11) 30. exd4 {[%emt 0:00:06]} Rxa5 {[%emt 0:01:21]} 31. h3 {[%emt 0:00:29]} Kg6 {[%emt 0:00:44] Weighted Error Value: White=0.35/Black=0.01 (flawless) .  Loses game:     	White=1     	---        Mistake:       	White=1     	---        OK:         	White=11    	Black=14     Best:        	White=2     	Black=2      Strong:       	---       	Black=2} 0-1

[Event "9th Porticcio Open 2024"]
[Site "Porticcio"]
[Date "2024.07.01"]
[Round "2.6"]
[White "De Balmann, Marc"]
[Black "Druska, Juraj"]
[Result "0-1"]
[ECO "A35"]
[WhiteElo "2194"]
[BlackElo "2466"]
[Annotator "RC"]
[PlyCount "77"]
[EventDate "2024.07.01"]
[EventType "swiss"]
[EventCountry "FRA"]
[SourceTitle "playchess.com"]
[Source "ChessBase"]
[SourceQuality "1"]
[TimeControl "5400+30"]

1. d4 {[%emt 0:00:05]} g6 {[%emt 0:04:32]} 2. c4 {[%emt 0:00:14]} Bg7 {[%emt 0:00:06]} 3. Nc3 {[%emt 0:00:14]} c5 {[%emt 0:01:00]} 4. Nf3 {[%emt 0:04:11]} cxd4 {[%emt 0:00:20]} 5. Nxd4 {[%emt 0:00:11]} Nc6 {[%emt 0:00:13]} 6. e3 {[%emt 0:02:38]} Nf6 {[%emt 0:00:10]} 7. Be2 {[%emt 0:02:21]} O-O {[%emt 0:00:09]} 8. O-O {[%emt 0:00:41]} d5 {[%emt 0:00:10]} 9. cxd5 {[%emt 0:07:16]} Nxd5 {[%emt 0:00:10]} 10. Nxd5 {[%emt 0:01:34]} Qxd5 {[%emt 0:00:03]} 11. Bf3 {[%emt 0:01:15]} Qc5 {[%emt 0:00:13]} 12. Nxc6 {[%emt 0:05:21]} bxc6 {[%emt 0:00:02]} 13. Qa4 {[%emt 0:04:04]} Be6 {[%emt 0:00:12]} 14. Rb1 {[%emt 0:04:12]} Rab8 {[%emt 0:24:29]} 15. b3 {[%emt 0:09:10]} Qb5 {[%emt 0:20:16]} 16. Ba3 {[%emt 0:14:35]} Qxa4 {[%emt 0:02:50]} 17. bxa4 {[%emt 0:00:06]} Bf6 {[%emt 0:16:12]} 18. Bxc6 {[%emt 0:04:05]} Rbc8 {[%emt 0:00:48]} 19. Be4 {[%emt 0:09:36]} Rc4 {[%emt 0:02:55]} 20. Rb4 {[%emt 0:00:50]} Rfc8 {[%emt 0:00:15]} 21. Rfb1 {[%emt 0:10:19]} a5 {[%emt 0:00:51]} 22. Rxc4 {[%emt 0:01:10]} Rxc4 {[%emt 0:00:02]} 23. f3 {[%emt 0:04:07]} Rxa4 {[%emt 0:00:11]} 24. Bc5 {[%emt 0:00:20]} Rxa2 {[%emt 0:04:32]} 25. Rb7 {[%emt 0:00:05]} a4 {[%emt 0:00:25]} 26. Ra7 {[%emt 0:01:54]} Bb3 {[%emt 0:00:47]} 27. g4 {[%emt 0:02:29]} g5 {[%emt 0:10:57]} 28. f4 {[%emt 0:02:35]} gxf4 {[%emt 0:01:09]} 29. exf4 {[%emt 0:00:13]} h6 {[%emt 0:00:15]} 30. h4 {[%emt 0:06:14]} Rd2 {[%emt 0:05:21]} 31. Ra8+ {[%emt 0:02:32]} Kg7 {[%emt 0:00:09]} 32. Ba3 {[%emt 0:00:06]} Rd4 {[%emt 0:04:31]} 33. g5 {[%emt 0:00:05]} Rxe4 {[%emt 0:01:34]} 34. gxf6+ {[%emt 0:00:01]} Kxf6 {[%emt 0:00:08]} 35. Ra6+ {[%emt 0:00:24]} Kf5 {[%emt 0:01:17]} 36. Kg2 {[%emt 0:01:20]} Bd5 {[%emt 0:00:31]} 37. Ra5 {[%emt 0:00:48]} e6 {[%emt 0:00:15]} 38. Bd6 {[%emt 0:01:04]} Rxf4+ {[%emt 0:00:12]} 39. Rxd5+ {[%emt 0:00:17]} 0-1

[Event "9th Porticcio Open 2024"]
[Site "Porticcio"]
[Date "2024.07.01"]
[Round "2.7"]
[White "Batsiashvili, Nino"]
[Black "Ribeiro, Gustavo"]
[Result "1-0"]
[ECO "E48"]
[WhiteElo "2450"]
[BlackElo "2246"]
[Annotator "TA"]
[PlyCount "67"]
[EventDate "2024.07.01"]
[EventType "swiss"]
[EventCountry "FRA"]
[SourceTitle "playchess.com"]
[Source "ChessBase"]
[SourceQuality "1"]
[TimeControl "5400+30"]

{[%evp 19,67,12,22,-42,-35,-52,-28,-46,-42,-81,-69,-107,-77,-90,-90,-92,-92,-92,-88,-91,-87,-91,-87,-114,-110,-154,-162,-143,0,0,0,-142,-98,-91,-8,0,-8,-12,0,0,0,0,1158,1106,1359,1027,29995,29996,29998,29999]} 1. d4 {[%emt 0:00:02]} Nf6 {[%emt 0:00:05]} 2. c4 {[%emt 0:00:03]} e6 {[%emt 0:00:03]} 3. Nc3 {[%emt 0:00:04]} Bb4 {[%emt 0:00:04]} 4. e3 {[%emt 0:00:04]} O-O {[%emt 0:00:37]} 5. Bd3 {[%emt 0:00:17]} c5 {[%emt 0:00:13]} 6. Nge2 {[%emt 0:00:37]} d5 {[%emt 0:00:34]} 7. cxd5 {[%emt 0:01:09]} Nxd5 {[%emt 0:00:56]} 8. O-O {[%emt 0:02:04]} cxd4 {[%emt 0:01:34]} 9. exd4 {[%emt 0:00:08]} Nc6 {[%emt 0:00:13]} 10. a3 {[%emt 0:02:02]} Be7 {[%emt 0:00:34]} 11. Bc4 {[%emt 0:03:42]} (11. Nxd5 $11 exd5 12. h3) 11... Nxc3 $15 {[%emt 0:03:56]} 12. bxc3 {[%emt 0:00:05]} b6 {[%emt 0:00:04]} 13. Qd3 {[%emt 0:10:16] Black has an edge.} Bb7 {[%emt 0:01:05]} 14. Bb2 {[%emt 0:00:19]} Rc8 {[%emt 0:00:22]} 15. Rac1 {[%emt 0:00:59]} Qd7 {[%emt 0:03:18]} 16. Rfe1 {[%emt 0:08:24] [#]} Ne5 $1 {[%emt 0:02:21]} 17. dxe5 {[%emt 0:00:31]} Qc6 {[%emt 0:00:01][%csl LRc4,LRg2]} 18. Qg3 {[%emt 0:05:37]} Qxc4 {[%emt 0:00:07]} 19. Nd4 {[%emt 0:02:10]} Rfd8 {[%emt 0:00:57]} 20. Rcd1 {[%emt 0:03:34]} a5 {[%emt 0:14:40]} 21. h4 {[%emt 0:00:38]} b5 {[%emt 0:00:51]} 22. Re3 {[%emt 0:13:30]} Qa2 {[%emt 0:05:19][%csl LRa3,LRb2]} 23. Bc1 {[%emt 0:07:59]} Bxa3 {[%emt 0:00:52] A strong pair of Bishops.} (23... b4 $17 {...Qd5 would now be deadly.} 24. axb4 axb4) 24. Red3 $40 {[%emt 0:09:22][%cal Od4f5][%mdl 128] White mounts an attack.} Bf8 {[%emt 0:03:04]} 25. Bg5 {[%emt 0:04:21]} (25. Nf5 $1 $11 Rxd3 26. Nh6+ Kh8 27. Nxf7+ Kg8 28. Nh6+ Kh8 29. Nf7+ Kg8 30. Nh6+ Kh8 31. Nf7+) 25... Rd5 {[%emt 0:01:40][%cal Bd8d5,Bd5e5,Be5e4][%mdl 32] aiming for ...Qa4.} 26. h5 {[%emt 0:00:06]} Qa4 {[%emt 0:03:47]} (26... b4 $17 {And now ...bxc3 would win.} 27. cxb4 axb4) 27. Qg4 $1 {[%emt 0:11:36]} Rxe5 {[%emt 0:02:14]} 28. Bf6 $1 {[%emt 0:00:05]} Re4 $1 {[%emt 0:00:06]} 29. f4 $1 {[%emt 0:00:11][%cal Of6g7] Strongly threatening Bxg7!} g6 {[%emt 0:04:44]} 30. hxg6 {[%emt 0:00:05]} hxg6 {[%emt 0:00:42][%mdl 8192]} (30... fxg6 $11 31. Nxe6 Qa2) 31. Qh4 $18 {[%emt 0:04:00]} Bg7 {[%emt 0:00:09] [#] Wards off Qh8+} 32. Nb3 $1 {[%emt 0:00:38][%mdl 512]} Bd5 {[%emt 0:05:44] [#]} (32... Re1+ 33. Rxe1) 33. Rh3 $1 {[%emt 0:00:21]} Kf8 {[%emt 0:00:01] [#]} (33... Qd4+ 34. Nxd4) 34. Qh8+ $3 {[%emt 0:00:20][%mdl 512] What a bad dream for Black.   Weighted Error Value: White=0.17 (very precise) /Black=0.43.  Loses game:     	---       	Black=1      Mistake:       	White=1     	Black=2      Inaccurate:     	White=4     	Black=1      OK:         	White=6     	Black=11     Best:        	White=3     	---        Strong:       	White=3     	Black=1} 1-0

[Event "9th Porticcio Open 2024"]
[Site "Porticcio"]
[Date "2024.07.01"]
[Round "2.8"]
[White "Nayak Rajesh"]
[Black "Rakotomaharo, Fy Antenaina"]
[Result "0-1"]
[ECO "C48"]
[WhiteElo "2185"]
[BlackElo "2448"]
[Annotator "TA"]
[PlyCount "98"]
[EventDate "2024.07.01"]
[EventType "swiss"]
[EventCountry "FRA"]
[SourceTitle "playchess.com"]
[Source "ChessBase"]
[SourceQuality "1"]
[TimeControl "5400+30"]

{[%evp 9,97,10,10,18,33,6,19,13,7,18,5,17,7,-17,33,20,21,6,40,35,31,0,-8,-54,-60,-120,-119,-125,-125,-133,-140,-139,-57,-66,-65,-107,-92,-109,-97,-82,-22,-22,-28,-16,-30,-20,-18,-29,-10,-70,-58,-102,-105,-105,-105,-109,-108,-308,-294,-304,-236,-261,-256,-239,-252,-415,-398,-345,-400,-383,-359,-550,-543,-552,-515,-627,-576,-639,-627,-786,-847,-821,-766,-29971,-29972,-6218,-5716,-29995,-29996,-29999]} 1. e4 {[%emt 0:00:05]} e5 {[%emt 0:06:39]} 2. Nf3 {[%emt 0:00:16]} Nc6 {[%emt 0:00:03]} 3. Nc3 {[%emt 0:00:13][%cal Bb1c3,Bc3e2,Be2g3,Bg3h5][%mdl 32]} Nf6 {[%emt 0:01:17]} 4. Bb5 {[%emt 0:00:09]} Bd6 {[%emt 0:00:26]} 5. O-O {[%emt 0:00:14]} O-O {[%emt 0:00:35]} 6. d3 {[%emt 0:00:10]} Re8 {[%emt 0:01:05]} 7. Ne2 {[%emt 0:01:45]} Ne7 {[%emt 0:09:53]} 8. Bc4 {[%emt 0:16:26] The position is equal.} Ng6 {[%emt 0:04:50]} 9. Ng5 {[%emt 0:03:33]} Re7 {[%emt 0:04:40]} 10. Ng3 {[%emt 0:10:19] Hoping for Nf5.} (10. c3 $5) 10... h6 {[%emt 0:00:27]} 11. Nh3 {[%emt 0:00:15]} (11. Nf3 $5) 11... Re8 {[%emt 0:04:17]} (11... Bc5 $11) 12. Nh5 $14 {[%emt 0:16:58]} c6 {[%emt 0:24:17]} 13. Bb3 {[%emt 0:10:39]} Bc5 {[%emt 0:13:25]} 14. Be3 {[%emt 0:10:37]} d6 {[%emt 0:01:24]} 15. Bxc5 {[%emt 0:06:25]} (15. Qf3 $5) 15... dxc5 {[%emt 0:00:34]} 16. f4 {[%emt 0:00:54]} (16. Qf3 $11 {is superior.}) 16... Bxh3 $15 {[%emt 0:13:53]} 17. gxh3 {[%emt 0:00:02]} (17. fxe5 $1 $15 Qd4+ (17... Nxe5 18. Nxf6+ gxf6 19. gxh3 $15) 18. Kh1 Bxg2+ (18... Qxe5 19. gxh3 Qxh5 20. Bxf7+ Kh7 21. Rg1 $16) (18... Rxe5 19. Nxf6+ gxf6 20. gxh3 $11) 19. Kxg2 Rxe5 (19... Qxe5 20. Nxf6+ gxf6 21. Kh1 $11) 20. c3 (20. Nxf6+ gxf6 21. Kh1 Rg5 $17)) 17... exf4 $17 {[%emt 0:01:34]} 18. Nxf4 {[%emt 0:03:07] [#]} Ne5 {[%emt 0:02:40]} 19. Nh5 {[%emt 0:01:55]} Nxh5 {[%emt 0:00:36]} 20. Qxh5 {[%emt 0:00:03][%cal Rb3f7]} Qg5+ {[%emt 0:02:56]} (20... Qd4+ $17 21. Kh1 Re7 (21... Qxb2 22. Rab1 $16)) 21. Qxg5 $15 {[%emt 0:01:44]} hxg5 {[%emt 0:00:04]} 22. Kg2 {[%emt 0:01:21]} Kf8 {[%emt 0:04:52]} 23. Rf5 {[%emt 0:03:04]} f6 {[%emt 0:00:05]} 24. Raf1 {[%emt 0:00:07]} Ke7 {[%emt 0:00:15]} ({Black should play} 24... b5 $17 {And now ...c4 would win.} 25. Rxg5 c4 26. dxc4 bxc4) 25. Rxe5+ $1 $11 {[%emt 0:00:36]} fxe5 {[%emt 0:00:04][%mdl 4096] Endgame. KRR-KRB} 26. Rf7+ {[%emt 0:00:06]} Kd6 {[%emt 0:00:01]} 27. Rxg7 {[%emt 0:00:06]} Re7 {[%emt 0:00:16]} 28. Rg6+ {[%emt 0:00:57]} Kc7 {[%emt 0:00:05]} 29. Be6 {[%emt 0:00:22]} (29. Rxg5 $11 b5 30. h4) 29... Rd8 $15 {[%emt 0:00:03]} 30. Bg4 {[%emt 0:01:09][%cal Og2f2] [#]} c4 $1 {[%emt 0:01:13][%mdl 512]} 31. Be2 {[%emt 0:00:50]} Rf7 {[%emt 0:02:50] White must now prevent ...Rdf8.} 32. Rxg5 {[%emt 0:00:10]} Rdf8 {[%emt 0:00:05]} 33. Bg4 $2 {[%emt 0:02:00] This costs White the game.} (33. Kg1 $17) 33... Rf2+ {[%emt 0:00:43]} 34. Kg3 {[%emt 0:00:03]} b5 {[%emt 0:00:38] Strongly threatening ...cxd3.} ({But not} 34... Rxc2 35. dxc4 Rxb2 36. h4 $19) 35. dxc4 {[%emt 0:03:58]} bxc4 {[%emt 0:00:03]} (35... Rxc2 36. cxb5 cxb5 37. Rxe5 Rxb2 38. h4 $19) 36. Rxe5 {[%emt 0:00:13]} Rxc2 {[%emt 0:00:04]} 37. Re7+ $2 {[%emt 0:00:05]} (37. h4 {was necessary.}) 37... Kb6 $19 {[%emt 0:01:25]} 38. Be6 {[%emt 0:00:11]} Kc5 {[%emt 0:00:35]} (38... Rxb2 $2 39. Bxc4 Rff2 40. h4 $17) 39. Rb7 {[%emt 0:01:49]} Rff2 {[%emt 0:00:27]} 40. b4+ {[%emt 0:01:18]} (40. Rxa7 $142 Rxb2 (40... Rxh2 $2 41. Ra5+ Kd4 42. Ra4 $19) 41. Ra5+ Kb4 42. Ra6) 40... Kd4 {[%emt 0:00:01]} (40... Kd6 $2 41. Bxc4 Rg2+ (41... Rxh2 42. b5 $17) 42. Kf3 $19) 41. Rd7+ {[%emt 0:00:49]} Kxe4 {[%emt 0:00:34]} 42. Bf7 {[%emt 0:01:04]} Rg2+ {[%emt 0:00:43]} 43. Kh4 {[%emt 0:00:01]} c3 {[%emt 0:00:46] aiming for ...Rcd2.} 44. Bb3 {[%emt 0:02:22]} Rcd2 {[%emt 0:00:30]} 45. Re7+ {[%emt 0:00:37]} Kf5 {[%emt 0:00:32] ( -> ...Rd4+)} 46. Rf7+ {[%emt 0:00:36]} Kg6 {[%emt 0:00:17]} 47. Rf4 {[%emt 0:00:40]} c2 {[%emt 0:00:07]} 48. Rc4 {[%emt 0:02:12]} c1=Q {[%emt 0:00:21]} 49. Rxc1 {[%emt 0:00:07]} Rd4# {[%emt 0:00:03] Weighted Error Value: White=0.58/Black=0.10 (very precise) .  Loses game:     	White=1     	---        Mistake:       	White=5     	Black=3      Inaccurate:     	White=4     	Black=1      OK:         	White=8     	Black=14     Best:        	White=2     	Black=6      Strong:       	White=1     	---} 0-1

[Event "9th Porticcio Open 2024"]
[Site "Porticcio"]
[Date "2024.07.01"]
[Round "2.9"]
[White "Teunisse, Rob"]
[Black "Vuitton, Gilles"]
[Result "0-1"]
[ECO "D02"]
[WhiteElo "1770"]
[BlackElo "1980"]
[Annotator "NA RC"]
[PlyCount "58"]
[EventDate "2024.07.01"]
[EventType "swiss"]
[EventCountry "FRA"]
[SourceTitle "playchess.com"]
[Source "ChessBase"]
[SourceQuality "1"]
[TimeControl "5400+30"]

1. d4 {[%emt 0:01:11]} e6 {[%emt 0:00:43]} 2. Bf4 {[%emt 0:00:19]} Nf6 {[%emt 0:00:36]} 3. e3 {[%emt 0:00:10]} c5 {[%emt 0:00:29]} 4. Nd2 {[%emt 0:01:06]} Nc6 {[%emt 0:02:15]} 5. c3 {[%emt 0:00:40]} d5 {[%emt 0:00:55]} 6. Ngf3 {[%emt 0:04:57]} Qb6 {[%emt 0:03:30]} 7. Rb1 {[%emt 0:01:09]} Nh5 {[%emt 0:02:36]} 8. Bg3 {[%emt 0:03:50]} Nxg3 {[%emt 0:02:17]} 9. hxg3 {[%emt 0:02:54]} Be7 {[%emt 0:10:55]} 10. Bd3 {[%emt 0:01:11]} h6 {[%emt 0:00:11]} 11. Ne5 {[%emt 0:01:35]} cxd4 {[%emt 0:12:39]} 12. exd4 {[%emt 0:06:43]} Nxe5 {[%emt 0:00:43]} 13. dxe5 {[%emt 0:00:07]} O-O {[%emt 0:09:58]} 14. Nf3 {[%emt 0:12:08]} f6 {[%emt 0:02:19]} 15. Qd2 {[%emt 0:06:05]} fxe5 {[%emt 0:11:03]} 16. Nxe5 {[%emt 0:07:12]} Bf6 {[%emt 0:07:37]} 17. Ng4 {[%emt 0:10:47]} e5 {[%emt 0:08:35]} 18. Nxh6+ {[%emt 0:03:30]} gxh6 {[%emt 0:00:24]} 19. Qxh6 {[%emt 0:07:23]} Qc7 {[%emt 0:00:47]} 20. Bh7+ {[%emt 0:00:33]} Kf7 {[%emt 0:00:23]} 21. Bg6+ {[%emt 0:01:53]} Ke7 {[%emt 0:00:12]} 22. Qd2 {[%emt 0:02:29]} Qc6 {[%emt 0:08:02]} 23. c4 {[%emt 0:02:25]} Qxc4 {[%emt 0:02:03]} 24. Rc1 {[%emt 0:00:22]} Qd4 {[%emt 0:00:47]} 25. Qa5 {[%emt 0:01:35]} Bg7 {[%emt 0:06:00]} 26. Qc7+ {[%emt 0:12:52]} Bd7 {[%emt 0:00:56]} 27. O-O {[%emt 0:02:44]} Rac8 {[%emt 0:00:35]} 28. Qa5 {[%emt 0:01:13]} Rxc1 {[%emt 0:00:12]} 29. Qa3+ {[%emt 0:01:23]} Kd8 {[%emt 0:01:03]} 0-1

[Event "9th Porticcio Open 2024"]
[Site "Porticcio"]
[Date "2024.07.01"]
[Round "2.11"]
[White "Robertson, Blair Michael"]
[Black "Parayre Soguero, Jordi"]
[Result "1-0"]
[ECO "D12"]
[WhiteElo "1998"]
[BlackElo "1931"]
[Annotator "NA RC"]
[PlyCount "89"]
[EventDate "2024.07.01"]
[EventType "swiss"]
[EventCountry "FRA"]
[SourceTitle "playchess.com"]
[Source "ChessBase"]
[SourceQuality "1"]
[TimeControl "5400+30"]

1. d4 {[%emt 0:00:08]} d5 {[%emt 0:00:23]} 2. c4 {[%emt 0:00:07]} c6 {[%emt 0:00:05]} 3. Nf3 {[%emt 0:00:06]} Nf6 {[%emt 0:00:07]} 4. e3 {[%emt 0:00:07]} Bf5 {[%emt 0:04:50]} 5. Nc3 {[%emt 0:00:29]} e6 {[%emt 0:00:12]} 6. Nh4 {[%emt 0:00:33]} Bg6 {[%emt 0:00:26]} 7. Be2 {[%emt 0:00:52]} Nbd7 {[%emt 0:01:54]} 8. O-O {[%emt 0:00:46]} Bd6 {[%emt 0:05:15]} 9. Nxg6 {[%emt 0:14:20]} hxg6 {[%emt 0:01:21]} 10. g3 {[%emt 0:01:24]} Qe7 {[%emt 0:28:40]} 11. c5 {[%emt 0:04:25]} Bc7 {[%emt 0:00:19]} 12. f4 {[%emt 0:04:07]} Nh5 {[%emt 0:03:00]} 13. e4 {[%emt 0:08:06]} dxe4 {[%emt 0:02:46]} 14. Nxe4 {[%emt 0:00:54]} Nhf6 {[%emt 0:05:56]} 15. Nc3 {[%emt 0:05:08]} Rd8 {[%emt 0:08:52]} 16. Qc2 {[%emt 0:06:34]} O-O {[%emt 0:02:34]} 17. Be3 {[%emt 0:14:14]} Rfe8 {[%emt 0:07:19]} 18. Bf3 {[%emt 0:06:05]} Nd5 {[%emt 0:02:04]} 19. Bf2 {[%emt 0:00:54]} N7f6 {[%emt 0:02:24]} 20. Rab1 {[%emt 0:03:56]} b6 {[%emt 0:03:25]} 21. b4 {[%emt 0:02:36]} b5 {[%emt 0:02:16]} 22. a4 {[%emt 0:05:51]} a6 {[%emt 0:00:57]} 23. Rfe1 {[%emt 0:01:16]} Qd7 {[%emt 0:03:32]} 24. Ne2 {[%emt 0:06:21]} Nh7 {[%emt 0:02:16]} 25. h4 {[%emt 0:02:02]} Nhf6 {[%emt 0:00:15]} 26. Kg2 {[%emt 0:01:30]} Ne7 {[%emt 0:04:59]} 27. Rh1 {[%emt 0:02:34]} Nh5 {[%emt 0:02:33]} 28. Qc1 {[%emt 0:02:47]} Nd5 {[%emt 0:00:30]} 29. Be3 {[%emt 0:00:43]} Nxe3+ {[%emt 0:01:42]} 30. Qxe3 {[%emt 0:00:06]} Nf6 {[%emt 0:00:10]} 31. Qb3 {[%emt 0:02:16]} Nd5 {[%emt 0:00:39]} 32. Be4 {[%emt 0:01:17]} Nf6 {[%emt 0:01:20]} 33. Bf3 {[%emt 0:00:34]} Nh5 {[%emt 0:01:35]} 34. Qc2 {[%emt 0:01:20]} Qe7 {[%emt 0:00:54]} 35. Bxc6 {[%emt 0:00:30]} Rf8 {[%emt 0:00:59]} 36. axb5 {[%emt 0:00:34]} axb5 {[%emt 0:00:04]} 37. Bxb5 {[%emt 0:01:01]} Qf6 {[%emt 0:00:26]} 38. Qe4 {[%emt 0:00:38]} Rd5 {[%emt 0:00:46]} 39. Bc6 {[%emt 0:00:41]} Rf5 {[%emt 0:00:21]} 40. Rbf1 {[%emt 0:01:03]} Rd8 {[%emt 0:00:51]} 41. b5 {[%emt 0:00:47]} Bxf4 {[%emt 0:01:07]} 42. gxf4 {[%emt 0:00:41]} Nxf4+ {[%emt 0:00:47]} 43. Rxf4 {[%emt 0:00:16]} Rxd4 {[%emt 0:00:32]} 44. Qxd4 {[%emt 0:00:14]} Rxf4 {[%emt 0:00:11]} 45. Qxf4 {[%emt 0:00:08]} 1-0